Cogmind - Beta 15 @@@ ROGUE MODE // 2025.06.03 @ 21:47:34 Player: Florist Result: Destroyed by B-86 Titan with Railgun Performance ------------- Evolutions (5) 2500 Regions Visited (15) 3000 Robots Destroyed (179) 895 Value Destroyed (6123) 6123 Prototype IDs (10) 200 Alien Tech Used (1) 200 Bonus (3911) 3911 TOTAL SCORE: 16829 Bonus ------- High Alert Combat Kills 76 Follower Combat Kills 1469 Entered DSFs 500 Network Hubs Disabled 200 Acquired ECA 300 Met Warlord at Base 500 MAIN.C Attacked Warlord 500 Warlord Defense Kills 538 Built Enhanced Grunts 300 Friendly Fire -472 Cogmind --------- Core Integrity 0/1000 Matter 109/300 Energy 146/170 System Corruption 39% Temperature Hot (231) Movement Walking (190) Ox1 Location -4/Proximity Caves Parts ------- > --- POWER (1) -------- Light Antimatter Reactor > --- PROPULSION (5) --- Flexi-carbon Leg > --- UTILITY (8) ------ Improved Sensor Array Improved Signal Interpreter Tactical Coordination Suite Improved Power Shielding > --- WEAPON (3) ------- Vortex Rail > --- INVENTORY (5) ---- Riot Gun Vortex Rail (7) Makeshift Spear Peak State ------------ > --- POWER ------------ Antimatter Reactor > --- PROPULSION ------- Carbon-fiber Leg Carbon-fiber Leg Improved VSS Leg Enhanced Flexi-carbon Leg Enhanced Biometal Leg > --- UTILITY ---------- Advanced Heat Sink Advanced Cooling System Advanced Cooling System Medium Storage Unit Improved Signal Interpreter Armor Integrity Analyzer Layered Medium Armor Plating Centrium Medium Armor Plating > --- WEAPON ----------- Plasma Rifle Thermoblaster Phasing Sabre > --- INVENTORY -------- Improved Sensor Array Tactical Coordination Suite Tactical Coordination Suite Improved Light Armor Plating Improved Light Armor Plating Improved Light Armor Plating Dimensional Node Initializer Vortex Rail Vortex Rail Vortex Rail [Rating: 96] Favorites ----------- Power Ion Engine Engine Ion Engine Power Core Neutrino Core Reactor Light Antimatter Reactor Propulsion Aluminum Leg Leg Aluminum Leg Flight Unit Xenon Bombardment Thruster Utility Medium Storage Unit Device Improved Cooling System Storage Medium Storage Unit Processor Armor Integrity Analyzer Protection Centrium Medium Armor Plating Weapon Gatling Laser Energy Gun Gatling Laser Energy Cannon Neutron Cannon Ballistic Gun Gauss Rifle Ballistic Cannon Heavy Flak Cannon Launcher Thermoblaster Slashing Weapon Phasing Sabre Build | -11 -10 -9 -8 -7 -7 -6 -6 -6 -6 -6 -5 -5 -5 -5 -4 ------- Run | Yrd Mat Mat Mat Fac DSF Fac Ext Cet Arc Hub Fac Upp Upp War Pro Slots Evolved 10 | . . 2 2 2 . 2 . . . . 2 . . . . Power . | . . . . . . . . . . . . . . . . Propulsion 3 | . . 2 . . . . . . . . 1 . . . . Utility 6 | . . . 2 1 . 2 . . . . 1 . . . . Weapon 1 | . . . . 1 . . . . . . . . . . . Parts Attached 165 | 7 13 9 21 3 15 15 14 3 2 11 7 6 1 32 6 Power 24 | 1 2 2 5 . 1 1 3 . 1 1 . . 1 5 1 Engine 13 | 1 2 2 4 . . . 2 . . . . . . 2 . Core 8 | . . . 1 . 1 1 1 . 1 . . . 1 2 . Reactor 3 | . . . . . . . . . . 1 . . . 1 1 Propulsion 45 | 2 3 3 6 . 4 6 5 . . 3 . 3 . 10 . Treads . | . . . . . . . . . . . . . . . . Leg 44 | 2 3 3 6 . 4 6 5 . . 3 . 3 . 9 . Wheel . | . . . . . . . . . . . . . . . . Hover . | . . . . . . . . . . . . . . . . Flight 1 | . . . . . . . . . . . . . . 1 . Utility 47 | 2 2 1 6 2 2 4 4 2 . 4 6 1 . 9 2 Device 23 | 1 . . 4 1 1 . 2 1 . 1 2 1 . 8 1 Storage 5 | 1 2 . . . . . . . . 2 . . . . . Processor 6 | . . . . 1 . 3 1 . . . . . . 1 . Hackware . | . . . . . . . . . . . . . . . . Protection 13 | . . 1 2 . 1 1 1 1 . 1 4 . . . 1 Artifact . | . . . . . . . . . . . . . . . . Weapon 49 | 2 6 3 4 1 8 4 2 1 1 3 1 2 . 8 3 Energy Gun 33 | 2 6 2 4 1 4 2 2 . 1 2 1 . . 4 2 Energy Cannon 1 | . . . . . . . . . . 1 . . . . . Ballistic Gun 6 | . . 1 . . 1 2 . . . . . . . 1 1 Ballistic Cannon 2 | . . . . . . . . . . . . 1 . 1 . Launcher 5 | . . . . . 3 . . 1 . . . . . 1 . Special Weapon . | . . . . . . . . . . . . . . . . Impact Weapon . | . . . . . . . . . . . . . . . . Slashing Weapon 2 | . . . . . . . . . . . . 1 . 1 . Piercing Weapon . | . . . . . . . . . . . . . . . . Special Melee Weapon . | . . . . . . . . . . . . . . . . Unidentified Prototypes 11 | . . 1 2 . . . . 1 . 3 1 . . 2 1 Corrupted Parts 9 | . 2 . . . . . 1 . . 2 . 1 . 3 . System Corruption 51 | . 7 . . . . . 7 . . 6 . 10 . 21 . Parts Lost 81 | . 4 2 4 . 11 4 2 . 3 7 4 5 2 17 16 Power 11 | . 1 1 . . 1 1 1 . . . 1 . . 4 1 Propulsion 22 | . 1 1 1 . 5 . . . 1 2 1 . 1 5 4 Utility 23 | . . . 1 . 2 1 1 . . 4 1 1 1 4 7 Weapon 25 | . 2 . 2 . 3 2 . . 2 1 1 4 . 4 4 Highest Loss Streak 10 | . 2 1 3 . 10 4 1 . 3 3 4 2 2 9 7 To Critical Strikes . | . . . . . . . . . . . . . . . . Average Backups 8 | 1 6 9 7 8 8 7 9 9 8 8 8 9 10 9 7 Power . | . 1 . . . . . . . . . . 1 1 . . Propulsion . | . . . . 1 . 1 1 1 . . . . 1 . . Utility 3 | . 3 6 5 5 4 2 2 2 2 3 4 5 5 4 1 Weapon 3 | . 1 2 2 2 3 3 5 6 5 4 3 2 1 2 4 Tool/Special . | . . . . . . . . . . . . . . . . Unused Backups 19 | . 2 3 2 . 1 . 4 1 1 . 1 2 . 1 1 Power 2 | . . . . . . . . . 1 . . 1 . . . Propulsion . | . . . . . . . . . . . . . . . . Utility 7 | . . 1 2 . . . . 1 . . 1 1 . 1 . Weapon 10 | . 2 2 . . 1 . 4 . . . . . . . 1 Tool/Special . | . . . . . . . . . . . . . . . . Average Slot Usage (%) 87 | . 82 90 98 93 70 87 98 100 94 90 85 79 80 73 81 Engine 5 | . 13 10 8 7 2 . 4 6 2 . . . . . 2 Core 1 | . . . . . 3 5 . . 3 3 2 5 5 3 . Leg 26 | . 27 36 35 30 14 24 26 26 25 23 19 19 25 21 20 Device 9 | . . . 17 15 9 6 11 13 13 12 10 6 5 12 16 Storage 7 | . 14 11 9 7 7 6 6 6 6 6 5 5 5 4 5 Processor 8 | . . . . 1 7 17 21 20 20 15 11 11 11 9 5 Protection 7 | . . 10 8 7 2 5 5 6 6 6 14 17 13 8 7 Energy Gun 14 | . 26 21 17 23 15 15 20 19 15 15 10 5 . 1 . Peak Build Rating 96 | 7 8 15 31 36 37 62 66 74 75 90 87 78 78 96 92 Average Rating 45 | 6 6 11 24 33 27 51 63 71 71 75 75 68 73 65 75 On Entrance 48 | . 7 7 14 31 36 32 62 65 74 72 70 77 78 70 80 Naked Turns . | . . . . . . . . . . . . . . . . Heaviest Build 66 | 15 19 26 31 34 49 46 37 40 42 57 63 63 58 66 62 Greatest Support 115 | 20 20 43 54 51 51 80 80 46 61 79 79 89 89 115 115 Greatest Overweight (x) 11 | . 1 1 . . 4 1 1 . . 1 1 1 . 11 2 Average Overweight (x) . | . . . . . . . . . . . . . . . . Largest Inventory Capacity 10 | 8 10 10 10 10 10 10 10 10 10 10 10 10 10 10 10 Average Capacity 9 | 7 9 10 10 10 10 10 10 10 10 10 10 10 10 9 9 Most Carried 10 | 2 10 10 10 10 10 10 10 10 10 10 10 10 10 10 9 Average Carried 8 | 1 6 9 8 9 8 7 9 9 8 8 8 9 10 9 7 Final Capacity 10 | 8 10 10 10 10 10 10 10 10 10 10 10 10 10 10 5 Final Carried 10 | 2 10 9 10 10 9 10 9 10 8 9 9 10 10 8 3 Class Distribution -------------------- 36% | Scavenger-Mutant 20% | Mutant 12% | Scavenger-Gunner 8% | Commander-Gunner 7% | Scavenger-Tank 4% | Tank 4% | Scavenger-Skirmisher Dominant Class ---------------- Scavenger-Mutant | -10/Materials Scavenger-Mutant | -9/Materials Mutant | -8/Materials Tank | -7/Factory Tank | -7/DSF Tank | -6/Factory Scavenger-Gunner | -6/Extension Commander-Gunner | -6/Cetus Commander-Mutant | -6/Archives Scavenger-Gunner | -6/Hub_04(d) Scavenger-Tank | -5/Factory Scavenger-Mutant | -5/Upper Caves Scavenger-Mutant | -5/Upper Caves Scavenger-Mutant | -5/Warlord Scavenger-Skirmisher | -4/Proximity Caves Resources | -11 -10 -9 -8 -7 -7 -6 -6 -6 -6 -6 -5 -5 -5 -5 -4 ----------- Run | Yrd Mat Mat Mat Fac DSF Fac Ext Cet Arc Hub Fac Upp Upp War Pro Matter Collected 3389 | 270 150 249 255 . 324 303 236 193 27 166 40 312 170 411 283 Remotely . | . . . . . . . . . . . . . . . . Salvage Created 6709 | 179 808 610 970 . 544 303 1459 144 142 339 111 467 63 226 344 Parts 324 | 21 50 48 50 . 22 9 56 7 4 6 9 17 4 12 9 Haulers Intercepted 11 | . 2 2 5 . . . 1 . . 1 . . . . . Recyclers Shooed 4 | . 1 3 . . . . . . . . . . . . . Parts Field Recycled . | . . . . . . . . . . . . . . . . Retrieved Matter . | . . . . . . . . . . . . . . . . Parts Self-Destructed 26 | . . . . . . . . . . . . 15 3 . 8 Prevented 3 | . . . . . . . . . . . . 3 . . . Kills | -11 -10 -9 -8 -7 -7 -6 -6 -6 -6 -6 -5 -5 -5 -5 -4 ------- Run | Yrd Mat Mat Mat Fac DSF Fac Ext Cet Arc Hub Fac Upp Upp War Pro Combat Hostiles Destroyed 124 | . 15 13 20 . 12 6 15 3 2 2 5 15 3 6 7 Melee 3 | . . . . . . . . . . . . . . 3 . Guns 88 | . 14 13 20 . 6 5 13 2 2 2 3 3 . 2 3 Cannons 9 | . . . . . . . . . . . 2 . 3 . 4 AOE 17 | . . . . . 5 . . . . . . 11 . 1 . Classes Destroyed 20 | 2 7 2 2 . 2 1 3 . . . . . . 1 . Worker 13 | . 5 2 2 . . . 2 . . 2 . . . . . Builder 1 | . . . . . . . 1 . . . . . . . . Tunneler 7 | 5 . . . . . . 2 . . . . . . . . Hauler 11 | . 2 2 5 . . . 1 . . 1 . . . . . Recycler 6 | 1 . 2 . . . . 3 . . . . . . . . Carrier 1 | . . . . . . . 1 . . . . . . . . Mechanic 1 | . 1 . . . . . . . . . . . . . . Operator 3 | . 1 . . . . . 2 . . . . . . . . Watcher 9 | . 2 2 3 . . . 1 1 . . . . . . . Swarmer 30 | . 6 6 2 . . . 3 . . . 5 4 3 1 . Saboteur 1 | . . . . . . . . . . . . . . 1 . Grunt 51 | . 9 4 8 . 6 1 5 2 . 2 . 9 . 2 3 Brawler 4 | . . . 1 . . . . . . . . . . 1 2 Duelist 2 | . . 1 . . . . . . . . . . . 1 . Sentry 20 | . . 2 7 . 1 2 5 . 2 . . 1 . . . Specialist 3 | . . . . . 3 . . . . . . . . . . Hunter 5 | . . . 2 . 1 2 . . . . . . . . . Programmer 5 | . . . . . . 1 1 . . . . 1 . . 2 Heavy 1 | . . . . . 1 . . . . . . . . . . Behemoth 1 | . . . . . . . 1 . . . . . . . . Cetus Guard 1 | . . . . . . . . 1 . . . . . . . Thug 1 | . . . . . . . . . . 1 . . . . . Butcher 1 | . . . . . . . . . . 1 . . . . . Guerrilla 1 | . . . . . . . . 1 . . . . . . . Best Kill Streak 9 | 3 6 4 7 . 5 2 4 2 2 3 2 9 3 3 3 Combat Bots Only 9 | . 3 3 6 . 5 2 3 2 2 2 2 9 3 3 3 Max Kills in Single Turn 3 | 1 2 2 2 . 2 1 2 2 1 1 1 3 1 1 1 Gunslinging 1 | . 1 1 1 . . . 1 . . . . . . . . Exploded 3 | . . . . . 2 . . . . . . 3 . 1 . Melee 1 | . . . . . . . . . . . . . . 1 . Uniques/NPCs Destroyed . | . . . . . . . . . . . . . . . . Combat | -11 -10 -9 -8 -7 -7 -6 -6 -6 -6 -6 -5 -5 -5 -5 -4 -------- Run | Yrd Mat Mat Mat Fac DSF Fac Ext Cet Arc Hub Fac Upp Upp War Pro Hostile Shots Fired 1053 | . 79 46 119 . 180 80 85 22 21 69 46 53 20 139 94 Missed 318 | . 20 15 33 . 58 20 31 8 4 18 13 13 7 51 27 Hits 735 | . 59 31 86 . 122 60 54 14 17 51 33 40 13 88 67 Melee 19 | . . . 2 . . . . . . 2 . . . 11 4 Projectile 716 | . 59 31 84 . 122 60 54 14 17 49 33 40 13 77 63 AOE 3 | . . . . . . . . . . . . . . 3 . Critical Strikes 25 | . 2 . 1 . 4 2 . 2 2 3 . 1 . 4 4 Damage Taken 14145 | . 682 450 1340 . 1978 927 715 303 440 1509 492 858 187 2347 1917 Core 2128 | . 106 32 95 . 363 101 89 31 104 187 12 80 17 666 245 Absorbed by Shields 161 | . . . . . . . 72 89 . . . . . . . Regen/Repaired (Parts) 924 | . . 166 171 . . . . . . . . . . 587 . Core Remaining (%) 69 | 100 57 92 82 . 48 . . . . 39 . . . . . Volleys Fired 449 | 12 83 45 77 . 33 19 43 11 6 18 15 21 15 20 31 Largest 3 | 2 2 2 2 . 3 3 3 3 3 3 3 3 1 2 3 Hottest 335 | 80 90 130 130 . 177 206 240 240 241 252 251 251 51 335 107 Shots Fired 964 | 24 155 87 153 . 77 51 129 29 17 51 31 41 14 25 80 Gun 853 | 24 155 87 153 . 53 51 129 22 17 49 16 21 . 20 56 Cannon 61 | . . . . . . . . . . 1 15 7 14 . 24 Launcher 50 | . . . . . 24 . . 7 . 1 . 13 . 5 . Special . | . . . . . . . . . . . . . . . . Kinetic 111 | . . . . . 3 16 . . . . . 5 14 . 73 Thermal 679 | . 64 87 153 . 50 35 129 22 17 50 31 23 . 18 . Explosive 45 | . . . . . 24 . . 7 . 1 . 13 . . . Electromagnetic 115 | 24 91 . . . . . . . . . . . . . . Entropic 14 | . . . . . . . . . . . . . . 7 7 Robot Hit Streak 18 | 5 11 10 18 . 15 15 18 8 5 7 7 13 5 5 15 Robot Miss Streak 11 | 3 5 9 11 . 2 5 5 3 3 4 6 4 4 3 7 Penetration Max 1 | . . . . . . . . . . . . . . . 1 Secondary Targets 14 | . 1 2 2 . 3 1 4 1 . . . . . . . Max Gunslinging Chain 1 | . 1 1 1 . 1 1 1 1 . . . . . . . Shots Hit Robots 704 | 13 97 63 138 . 61 43 96 18 14 34 15 27 9 24 52 Core Hits 606 | 7 39 60 186 . 36 29 73 32 12 24 8 41 3 16 40 Critical Kills 2 | . . . . . . . . . . . . . 2 . . Critical Parts Destroyed 7 | . . . . . . . . . . . . . 3 2 2 Critical Strikes 22 | . 4 1 . . 1 . 1 . 1 2 . . 5 5 2 Burn 7 | . 1 1 . . 1 . 1 . 1 2 . . . . . Destroy 6 | . . . . . . . . . . . . . 5 . 1 Corrupt 3 | . 3 . . . . . . . . . . . . . . Sever 3 | . . . . . . . . . . . . . . 3 . Detonate 3 | . . . . . . . . . . . . . . 2 1 Melee Attacks 9 | . . . . . . . . . . . . 1 . 8 . Impact . | . . . . . . . . . . . . . . . . Slashing 9 | . . . . . . . . . . . . 1 . 8 . Piercing . | . . . . . . . . . . . . . . . . Sneak Attacks . | . . . . . . . . . . . . . . . . Combat Hostiles . | . . . . . . . . . . . . . . . . Follow-up Attacks . | . . . . . . . . . . . . . . . . Damage Inflicted 17909 | 172 1415 917 1943 . 2405 784 2248 1093 293 1054 440 1745 142 1604 1654 Guns 11740 | 172 1310 816 1943 . 709 784 2248 514 293 904 213 433 . 481 920 Cannons 1044 | . . . . . . . . . . . 227 77 142 . 598 Explosions 4881 | . 105 101 . . 1696 . . 579 . 150 . 1235 . 879 136 Melee 244 | . . . . . . . . . . . . . . 244 . Ramming . | . . . . . . . . . . . . . . . . Kinetic 1906 | . . . . . 39 282 . . . . . . 142 . 1443 Thermal 10783 | . 609 917 1943 . 670 502 2248 514 293 904 440 510 . 1097 136 Explosive 3510 | . . . . . 1696 . . 579 . . . 1235 . . . Electromagnetic 1128 | 172 806 . . . . . . . . 150 . . . . . Impact . | . . . . . . . . . . . . . . . . Slashing 244 | . . . . . . . . . . . . . . 244 . Piercing . | . . . . . . . . . . . . . . . . Entropic 338 | . . . . . . . . . . . . . . 263 75 Highest Corruption 39 | . 7 . . . . . 7 7 7 31 . 10 10 23 39 Average Corruption 12 | . 6 . . . . . 7 7 7 18 . 10 10 8 28 Corruption Purged . | . . . . . . . . . . . . . . . . Corruption Blocked . | . . . . . . . . . . . . . . . . Effects 145 | . 20 . . . . . 14 14 4 22 . 3 15 10 43 Message Errors 35 | . 9 . . . . . 5 4 . 3 . 1 2 6 5 Matter Fused 22 | . 1 . . . . . 3 . 2 5 . 1 5 1 4 Heat Flow Errors 17 | . 2 . . . . . 2 2 1 3 . . 2 1 4 Energy Discharges 14 | . 1 . . . . . 1 2 . 4 . . . . 6 Parts Rejected 1 | . 1 . . . . . . . . . . . . . . Parts Fused 1 | . 1 . . . . . . . . . . . . . . Data Loss (minor) 20 | . 3 . . . . . . 2 1 1 . . 2 1 10 Data Loss (major) 10 | . 1 . . . . . 1 2 . 2 . . 2 . 2 Misfires 9 | . . . . . . . 2 1 . 1 . 1 . . 4 Alerts 4 | . . . . . . . . 1 . . . . 1 . 2 Misdirections 3 | . . . . . . . . . . 1 . . . 1 1 Weapon Failures 9 | . 1 . . . . . . . . 2 . . 1 . 5 Overload Shots . | . . . . . . . . . . . . . . . . Overflow Damage 158 | . 24 86 . . 18 . . . . . 20 . 2 8 . Projectiles 22 | . . . . . . . . . . . 20 . 2 . . Explosions 136 | . 24 86 . . 18 . . . . . . . . 8 . Melee . | . . . . . . . . . . . . . . . . Knockbacks 19 | . . . . . . . . . . . . . 4 . 15 Impact . | . . . . . . . . . . . . . . . . Kinetic 13 | . . . . . . . . . . . . . 3 . 10 Secondary 6 | . . . . . . . . . . . . . 1 . 5 Self-Inflicted Damage 367 | . . 115 . . 21 . . . . 97 . 95 . 39 . Shots 8 | . . 2 . . 1 . . . . 1 . 3 . 1 . Rammed . | . . . . . . . . . . . . . . . . Targets Rammed . | . . . . . . . . . . . . . . . . Kicked . | . . . . . . . . . . . . . . . . Crushed . | . . . . . . . . . . . . . . . . Highest Temperature 594 | 144 234 460 141 . 594 51 269 9 . 231 317 183 189 154 222 Average Temperature 101 | 57 74 159 18 . 185 25 86 9 . 68 141 82 90 60 65 Received Heat Transfer 2876 | . 261 117 441 . 534 129 161 18 63 204 . 231 . 452 265 Effects 13 | . . 5 . . 8 . . . . . . . . . . Shutdowns 3 | . . 1 . . 2 . . . . . . . . . . Energy Bleed 1 | . . 1 . . . . . . . . . . . . . Interference 2 | . . 1 . . 1 . . . . . . . . . . Matter Decay 2 | . . 2 . . . . . . . . . . . . . Damage (minor) 3 | . . . . . 3 . . . . . . . . . . Damage (major) 2 | . . . . . 2 . . . . . . . . . . Siege Activations . | . . . . . . . . . . . . . . . . Martial Activations . | . . . . . . . . . . . . . . . . Shielding Activations . | . . . . . . . . . . . . . . . . Robots Disrupted . | . . . . . . . . . . . . . . . . Combat Hostiles . | . . . . . . . . . . . . . . . . Robots Corrupted 4 | . 3 . . . . . . . . 1 . . . . . Combat Hostiles 1 | . 1 . . . . . . . . . . . . . . Parts Fried 7 | . 6 . . . . . . . . 1 . . . . . Impact Corruptions . | . . . . . . . . . . . . . . . . Robots Melted 7 | . . . . . 1 1 3 1 . . . 1 . . . Combat Hostiles 6 | . . . . . 1 1 2 1 . . . 1 . . . Parts Melted 32 | . 2 . . . 2 3 16 2 1 4 . 2 . . . Heat Transferred 19189 | . 1479 1567 2390 . 1554 1050 5040 1139 685 1748 475 834 . 1128 100 Parts Sabotaged 8 | . . . . . . . . . . . . . . 8 . Parts Stolen . | . . . . . . . . . . . . . . . . Parts Stripped . | . . . . . . . . . . . . . . . . Power Chain Reactions 3 | . 3 . . . . . . . . . . . . . . Alert | -11 -10 -9 -8 -7 -7 -6 -6 -6 -6 -6 -5 -5 -5 -5 -4 ------- Run | Yrd Mat Mat Mat Fac DSF Fac Ext Cet Arc Hub Fac Upp Upp War Pro Maximum Alert Level 3 | . . . . . 1 . 2 2 1 3 2 . . . . Low Security (%) 73 | 100 100 100 100 100 57 100 57 . . 17 . . . . . Level 1 16 | . . . . . 42 . 28 62 100 12 76 . . . . Level 2 8 | . . . . . . . 13 37 . 48 23 . . . . Level 3 1 | . . . . . . . . . . 22 . . . . . Level 4 . | . . . . . . . . . . . . . . . . Level 5 . | . . . . . . . . . . . . . . . . High Security . | . . . . . . . . . . . . . . . . Max Security . | . . . . . . . . . . . . . . . . Sterilizations 1 | . . . . . 1 . . . . . . . . . . Peak Influence 790 | 10 123 126 186 67 332 194 511 626 346 790 420 . . . . Initial 335 | . . 46 33 67 3 174 37 275 219 107 335 . . . . Average 156 | 1 48 67 95 27 164 100 171 421 306 516 381 . . . . Influence Increases 6298 | 30 550 439 630 5 439 174 1040 591 177 1054 204 340 180 225 220 Destroy 0b10 Robot/C 3140 | . 300 260 400 . 240 120 500 240 80 280 100 300 60 120 140 Destroy 0b10 Robot/NC 300 | 30 55 40 50 . 20 . 70 5 . 30 . . . . . Destroy Leader 602 | . 78 58 136 . 40 50 76 30 . 74 . 40 . . 20 Allied During Kill 971 | . . . . . . . 297 272 80 322 . . . . . Successful Hack 145 | . 21 11 29 5 . 4 63 8 . 4 . . . . . Disable Machine 165 | . . 30 . . . . . . 15 90 30 . . . . Anti-Garrison Action 150 | . . . . . . . . . . 150 . . . . . Destroy Structure 255 | . 6 40 . . 64 . 4 36 2 89 14 . . . . Lose Combat Pursuer 570 | . 90 . 15 . 75 . 30 . . 15 60 . 120 105 60 Influence Decreases 6298 | 30 439 471 560 149 112 428 626 535 419 675 540 426 221 447 220 Entered New Map 1892 | . . 65 46 82 2 158 41 217 329 199 350 130 51 222 . Time Decay 3347 | 30 399 386 474 67 . 230 465 238 60 206 150 246 150 90 156 Lost Part 679 | . 40 20 40 . 110 40 20 . 30 70 40 50 20 135 64 Lost Ally 380 | . . . . . . . 100 80 . 200 . . . . . Squads Dispatched 22 | . 3 . 2 . 2 5 2 3 . 4 1 . . . . Investigation 6 | . 1 . . . . . 2 3 . . . . . . . Extermination 1 | . . . . . . 1 . . . . . . . . . Reinforcement 9 | . 2 . 2 . 2 1 . . . 1 1 . . . . Assault 2 | . . . . . . . . . . 2 . . . . . Garrison 4 | . . . . . . 3 . . . 1 . . . . . Intercept . | . . . . . . . . . . . . . . . . Searches Triggered . | . . . . . . . . . . . . . . . . Construction Impeded 1 | . . . . . . . . . . 1 . . . . . Haulers Reinforced . | . . . . . . . . . . . . . . . . Active Scanning Responses . | . . . . . . . . . . . . . . . . Cargo Convoy Interrupts . | . . . . . . . . . . . . . . . . Stealth | -11 -10 -9 -8 -7 -7 -6 -6 -6 -6 -6 -5 -5 -5 -5 -4 --------- Run | Yrd Mat Mat Mat Fac DSF Fac Ext Cet Arc Hub Fac Upp Upp War Pro Distress Signals 13 | . 4 . 2 . . . 3 1 . 1 1 . . 1 . Communications Jammed . | . . . . . . . . . . . . . . . . Distress Signals . | . . . . . . . . . . . . . . . . Times Spotted 291 | . 31 17 34 . 17 7 31 13 10 16 16 15 9 59 16 Peak Tracking Total 20 | . 4 3 5 . 4 2 5 8 3 6 6 5 5 20 6 Tactical Retreats 25 | . 5 . 1 . 5 . 1 . . 1 2 . 4 3 3 Traps | -11 -10 -9 -8 -7 -7 -6 -6 -6 -6 -6 -5 -5 -5 -5 -4 ------- Run | Yrd Mat Mat Mat Fac DSF Fac Ext Cet Arc Hub Fac Upp Upp War Pro Traps Triggered 12 | . 3 . 1 . 1 . 4 . . 2 . . . 1 . Indirectly . | . . . . . . . . . . . . . . . . Trap Hack Attempts . | . . . . . . . . . . . . . . . . Triggered . | . . . . . . . . . . . . . . . . Disarmed . | . . . . . . . . . . . . . . . . Reprogrammed . | . . . . . . . . . . . . . . . . Reused . | . . . . . . . . . . . . . . . . Traps Extracted . | . . . . . . . . . . . . . . . . Installed . | . . . . . . . . . . . . . . . . Triggered . | . . . . . . . . . . . . . . . . Machines | -11 -10 -9 -8 -7 -7 -6 -6 -6 -6 -6 -5 -5 -5 -5 -4 ---------- Run | Yrd Mat Mat Mat Fac DSF Fac Ext Cet Arc Hub Fac Upp Upp War Pro Machines Disabled 15 | . . 2 . . . . . 1 1 7 2 1 . . 1 Max in Single Turn 4 | . . 2 . . . . . 1 . 4 1 1 . . 1 Garrison Access 1 | . . . . . . . . . . 1 . . . . . Network Hub 1 | . . . . . . . . . . 1 . . . . . Machines Repaired . | . . . . . . . . . . . . . . . . Machines Dismantled . | . . . . . . . . . . . . . . . . Machines Sabotaged . | . . . . . . . . . . . . . . . . Overloaded Fab Kills . | . . . . . . . . . . . . . . . . Hacking | -11 -10 -9 -8 -7 -7 -6 -6 -6 -6 -6 -5 -5 -5 -5 -4 --------- Run | Yrd Mat Mat Mat Fac DSF Fac Ext Cet Arc Hub Fac Upp Upp War Pro Machines Accessed 54 | . 7 4 11 2 . 2 9 3 . 3 1 1 . 11 . Terminals 33 | . 6 2 7 1 . 1 9 3 . 3 1 . . . . Fabricators . | . . . . . . . . . . . . . . . . Repair Stations 2 | . . 1 1 . . . . . . . . . . . . Recycling Units 5 | . 1 1 2 1 . . . . . . . . . . . Scanalyzers . | . . . . . . . . . . . . . . . . Garrison Access 2 | . . . 1 . . 1 . . . . . . . . . Total Hacks 117 | . 18 10 25 4 . 3 21 11 . 5 2 1 . 17 . Successful 65 | . 12 7 15 1 . 1 8 1 . 2 . 1 . 17 . Failed 52 | . 6 3 10 3 . 2 13 10 . 3 2 . . . . Catastrophic 10 | . . . 2 . . 1 4 3 . . . . . . . Database Lockouts . | . . . . . . . . . . . . . . . . Manual 33 | . 14 3 10 . . . . 1 . 5 . . . . . Terminals 75 | . 16 4 12 2 . 2 21 11 . 5 2 . . . . Fabricators . | . . . . . . . . . . . . . . . . Repair Stations 11 | . . 5 6 . . . . . . . . . . . . Recycling Units 9 | . 2 1 4 2 . . . . . . . . . . . Scanalyzers . | . . . . . . . . . . . . . . . . Garrison Access 4 | . . . 3 . . 1 . . . . . . . . . Terminal Hacks 35 | . 3 1 2 1 . 1 8 1 . . . 1 . 17 . Record 18 | . . . . . . . . 1 . . . 1 . 16 . Robot Analysis 2 | . 2 . . . . . . . . . . . . . . Open Door 9 | . . . . . . 1 7 . . . . . . 1 . Open DSF 1 | . . . . 1 . . . . . . . . . . . Branch Access Points 1 | . . . 1 . . . . . . . . . . . . Locate Traps 2 | . 1 . 1 . . . . . . . . . . . . Zone Layout 2 | . . 1 . . . . 1 . . . . . . . . Fabricator Hacks . | . . . . . . . . . . . . . . . . Repair Station Hacks 10 | . . 4 6 . . . . . . . . . . . . Scan Component 5 | . . 2 3 . . . . . . . . . . . . Repair 5 | . . 2 3 . . . . . . . . . . . . Recycling Unit Hacks 4 | . 2 1 1 . . . . . . . . . . . . Retrieve Matter 1 | . 1 . . . . . . . . . . . . . . Retrieve Components 3 | . 1 1 1 . . . . . . . . . . . . Scanalyzer . | . . . . . . . . . . . . . . . . Garrison Access Hacks . | . . . . . . . . . . . . . . . . Unauthorized Hacks 15 | . 6 1 6 . . . . . . 2 . . . . . Terminals 15 | . 6 1 6 . . . . . . 2 . . . . . Botnet 15 | . 6 1 6 . . . . . . 2 . . . . . Fabricators . | . . . . . . . . . . . . . . . . Repair Stations . | . . . . . . . . . . . . . . . . Recycling Units . | . . . . . . . . . . . . . . . . Scanalyzers . | . . . . . . . . . . . . . . . . Garrison Access . | . . . . . . . . . . . . . . . . Data Cores Recovered 2 | . . . . . . . 2 . . . . . . . . Used . | . . . . . . . . . . . . . . . . Hacking Detections 31 | . 1 2 8 2 . 2 9 4 . 2 1 . . . . Full Trace Events 7 | . . 1 1 . . . 2 3 . . . . . . . Feedback Events . | . . . . . . . . . . . . . . . . Feedback Blocked . | . . . . . . . . . . . . . . . . Robot Schematics Acquired . | . . . . . . . . . . . . . . . . Robots Built . | . . . . . . . . . . . . . . . . Authchips . | . . . . . . . . . . . . . . . . Time . | . . . . . . . . . . . . . . . . Total Robot Build Rating . | . . . . . . . . . . . . . . . . Part Schematics Acquired . | . . . . . . . . . . . . . . . . Parts Built . | . . . . . . . . . . . . . . . . Authchips . | . . . . . . . . . . . . . . . . Time . | . . . . . . . . . . . . . . . . Total Part Build Rating . | . . . . . . . . . . . . . . . . Parts Repaired 5 | . . 2 3 . . . . . . . . . . . . Time 154 | . . 52 102 . . . . . . . . . . . . Parts Recycled . | . . . . . . . . . . . . . . . . Recycled Matter . | . . . . . . . . . . . . . . . . Retrieved Matter . | . . . . . . . . . . . . . . . . Retrieved Components 22 | . 9 5 8 . . . . . . . . . . . . Parts Scanalyzed . | . . . . . . . . . . . . . . . . Part Schematics Acquired . | . . . . . . . . . . . . . . . . Parts Damaged . | . . . . . . . . . . . . . . . . Bothacking | -11 -10 -9 -8 -7 -7 -6 -6 -6 -6 -6 -5 -5 -5 -5 -4 ------------ Run | Yrd Mat Mat Mat Fac DSF Fac Ext Cet Arc Hub Fac Upp Upp War Pro Used RIF Installer . | . . . . . . . . . . . . . . . . Robots Hacked . | . . . . . . . . . . . . . . . . Non-combat . | . . . . . . . . . . . . . . . . Combat . | . . . . . . . . . . . . . . . . Robot Hacks Applied . | . . . . . . . . . . . . . . . . Relay Couplers Released 3 | . . . . . . . . . . 3 . . . . . Machine Destruction 3 | . . . . . . . . . . 3 . . . . . Fabnet Peak Effective % . | . . . . . . . . . . . . . . . . Robots Rewired 13 | . . . . . . . 13 . . . . . . . . Allies Hacked . | . . . . . . . . . . . . . . . . Hacks Repelled . | . . . . . . . . . . . . . . . . Allies | -11 -10 -9 -8 -7 -7 -6 -6 -6 -6 -6 -5 -5 -5 -5 -4 -------- Run | Yrd Mat Mat Mat Fac DSF Fac Ext Cet Arc Hub Fac Upp Upp War Pro Total Allies 25 | . . . . . . . 20 5 . . . . . . . Largest Group 15 | . . . . . . . 14 15 14 13 . . . . . Highest-Rated Group 851 | . . . . . . . 491 851 826 667 . . . . . Highest-Rated Ally 159 | . . . . . . . 159 159 159 96 . . . . . Initial Warlord ECA Mod 84 | . . . . . . 9 9 9 9 9 8 8 8 8 7 Total Orders 1 | . . . . . . . . . . 1 . . . . . STAY 1 | . . . . . . . . . . 1 . . . . . Ally Attacks 249 | . . . . . . . 108 57 13 71 . . . . . Total Damage 6653 | . . . . . . . 2373 1585 364 2331 . . . . . Kills 38 | . . . . . . . 11 9 2 16 . . . . . Allies Corrupted 3 | . . . . . . . . . . 3 . . . . . Allies Melted 2 | . . . . . . . . . . 1 . . . 1 . Intel | -11 -10 -9 -8 -7 -7 -6 -6 -6 -6 -6 -5 -5 -5 -5 -4 ------- Run | Yrd Mat Mat Mat Fac DSF Fac Ext Cet Arc Hub Fac Upp Upp War Pro Active Infowar (turns) 5568 | 86 41 . 1405 185 65 491 1417 503 129 155 306 173 . . 612 Sensors 1057 | . . . 195 185 65 . . . . . . . . . 612 Structural 480 | . . . . 1 . . . . . . 306 173 . . . Seismic 1337 | 86 41 . 1210 . . . . . . . . . . . . Machine Analysis 2695 | . . . . . . 491 1417 503 129 155 . . . . . Robot Analysis Total 2 | . 2 . . . . . . . . . . . . . . Derelict Logs Recovered 3 | . . . . . . . . . . . . . 2 . 1 Drone Launches . | . . . . . . . . . . . . . . . . Drone Recoveries . | . . . . . . . . . . . . . . . . Exploration | -11 -10 -9 -8 -7 -7 -6 -6 -6 -6 -6 -5 -5 -5 -5 -4 ------------- Run | Yrd Mat Mat Mat Fac DSF Fac Ext Cet Arc Hub Fac Upp Upp War Pro Turns Passed 10625 | 165 1403 917 1485 185 369 494 1417 503 129 429 317 538 311 1308 655 Spaces Moved 6068 | 101 846 464 849 150 150 261 669 234 62 268 154 381 245 828 406 Core 33 | 6 . . . . . . . . . . . . . 27 . Treads . | . . . . . . . . . . . . . . . . Legs 6035 | 95 846 464 849 150 150 261 669 234 62 268 154 381 245 801 406 Wheels . | . . . . . . . . . . . . . . . . Hover . | . . . . . . . . . . . . . . . . Flight . | . . . . . . . . . . . . . . . . Fastest Speed 50 | 50 120 120 120 120 120 120 90 100 97 100 110 110 112 100 113 Average Speed 124 | 115 121 131 120 120 141 137 135 100 98 124 150 112 112 130 120 Slowest Speed 600 | 120 190 190 120 120 400 190 180 100 100 185 186 186 114 600 260 Overloaded Moves . | . . . . . . . . . . . . . . . . Propulsion Burnouts . | . . . . . . . . . . . . . . . . Robots Hopped . | . . . . . . . . . . . . . . . . Potential Cave-ins 2 | . . . . . . . . . . . . . . 2 . Cave-ins Triggered . | . . . . . . . . . . . . . . . . Exploration Rate (%) 47 | 4 97 32 78 5 85 7 77 61 71 20 5 54 43 83 34 Regions Visited 15 Branch Regions 8 Pre-discovered Areas 1 | . . . . . . . . . . . . 1 . . . Known Exits Taken 10 | . . . . 1 . 1 1 1 1 1 1 1 1 1 . Unknown Exits Taken 4 | 1 1 1 1 . . . . . . . . . . . . Scrap Searched 4 | . . . . . . . . . . . . 3 . . 1 Spaces Dug 4 | . . . . . . . . . . . 2 . . . 2 Terrain Destroyed 519 | . 6 42 . . 81 . . 71 . 164 6 102 . 33 14 Melee . | . . . . . . . . . . . . . . . . Projectile 31 | . . . . . 1 . . . . 1 6 . . 9 14 AOE 488 | . 6 42 . . 80 . . 71 . 163 . 102 . 24 . Terrain Rammed . | . . . . . . . . . . . . . . . . Walls Destroyed . | . . . . . . . . . . . . . . . . Machines Disabled . | . . . . . . . . . . . . . . . . Actions | -11 -10 -9 -8 -7 -7 -6 -6 -6 -6 -6 -5 -5 -5 -5 -4 --------- Run | Yrd Mat Mat Mat Fac DSF Fac Ext Cet Arc Hub Fac Upp Upp War Pro Total 8209 | 121 1068 688 1162 155 235 354 1074 473 114 317 209 450 265 1014 510 Wait 1163 | . 100 151 189 . 19 45 202 217 41 12 13 25 2 92 55 Move 6054 | 100 845 463 848 150 149 260 668 233 61 267 153 380 244 827 406 Hop . | . . . . . . . . . . . . . . . . Pick Up 78 | 2 12 7 7 1 2 6 8 2 1 2 10 5 . 10 3 Fast Attach 107 | 7 12 8 12 1 10 6 7 1 . 6 3 4 1 28 1 Attach 62 | . 2 3 5 2 5 5 2 . 2 3 9 4 . 10 10 Detach 15 | . 1 . . 1 3 1 . . . 1 . 2 . 4 2 Swap 49 | . 2 1 8 . 5 5 7 6 1 4 . 4 1 3 2 Drop 102 | . 11 10 16 . 4 7 21 3 2 4 6 4 2 12 . Fire 449 | 12 83 45 77 . 33 19 43 11 6 18 15 21 15 20 31 Melee 9 | . . . . . . . . . . . . 1 . 8 . Ram . | . . . . . . . . . . . . . . . . Kick . | . . . . . . . . . . . . . . . . Crush . | . . . . . . . . . . . . . . . . Escape Stasis 18 | . . . . . 5 . 13 . . . . . . . . Rewire 103 | . . . . . . . 103 . . . . . . . . Trap . | . . . . . . . . . . . . . . . . Miscellaneous . | . . . . . . . . . . . . . . . . Route ------- -11/Scrapyard -10/Materials (discovered 5 exits: *Mat x3 / [*Min] / [*Sub]) -9/Materials -8/Materials -7/Factory -7/DSF -6/Factory -6/Extension (discovered 2 exits: *Fac / *Cet) -6/Cetus -6/Archives (discovered 2 exits: *Fac / *Hub) -6/Hub_04(d) (discovered 2 exits: *Fac x2) -5/Factory -5/Upper Caves -5/Upper Caves -5/Warlord -4/Proximity Caves History --------- Turn | Location | Event 4 | -11/Scrapyard | Discovered new exit (range 15) 166 | -11/Scrapyard | Entered Materials 304 | -10/Materials | Build established: Mutant 407 | -10/Materials | Discovered new exit (range 9) 641 | -10/Materials | Discovered new exit (range 9) 957 | -10/Materials | Discovered new exit (range 10) 1118 | -10/Materials | Build established: Scavenger-Mutant 1125 | -10/Materials | Discovered new exit (range 12) 1481 | -10/Materials | Discovered new exit (range 8) 1569 | -10/Materials | Entered another Materials area 1569 | -9/Materials | Evolved 2 slots: Propulsion x2 2123 | -9/Materials | Repaired Aluminum Leg 2151 | -9/Materials | Repaired Aluminum Leg 2257 | -9/Materials | Discovered new exit (range 19) 2486 | -9/Materials | Entered another Materials area 2486 | -8/Materials | Evolved 2 slots: Utility x2 3111 | -8/Materials | Build established: Mutant 3324 | -8/Materials | Repaired Spread Laser 3364 | -8/Materials | Repaired Carbon-fiber Leg 3397 | -8/Materials | Repaired Imp. Aluminum Leg 3745 | -8/Materials | Lost 3 parts (1n1u1w) 3937 | -8/Materials | Discovered new exit (range 16) 3971 | -8/Materials | Entered Factory 3971 | -7/Factory | Evolved 2 slots: Utility x1, Weapon x1 4156 | -7/Factory | Identified exit to DSF 4156 | -7/Factory | Entered DSF 4184 | -7/DSF | Additional patrols routed to DSF 4293 | -7/DSF | Lost 10 parts (1p4n2u3w) 4369 | -7/DSF | Sterilization system engaged 4389 | -7/DSF | Ambient heat levels rising (+10) 4394 | -7/DSF | Core integrity fell below 50% 4404 | -7/DSF | Ambient heat levels rising (+10) 4419 | -7/DSF | Ambient heat levels rising (+10) 4434 | -7/DSF | Ambient heat levels rising (+10) 4449 | -7/DSF | Ambient heat levels rising (+10) 4464 | -7/DSF | Ambient heat levels rising (+10) 4479 | -7/DSF | Ambient heat levels rising (+10) 4494 | -7/DSF | Ambient heat levels rising (+10) 4509 | -7/DSF | Ambient heat levels rising (+10) 4509 | -7/DSF | Discovered new exit (range 14) 4524 | -7/DSF | Ambient heat levels rising (+10) 4524 | -7/DSF | Identified exit to Factory 4525 | -7/DSF | Entered Factory 4525 | -6/Factory | Evolved 2 slots: Utility x2 4784 | -6/Factory | Garrison activated, responded to threat 4817 | -6/Factory | Lost 4 parts (1p1u2w) 5015 | -6/Factory | Discovered new exit (range 5) 5018 | -6/Factory | Identified exit to Extension 5019 | -6/Factory | Entered Extension 5169 | -6/Extension | Disrupted transfer network 5278 | -6/Extension | Build established: Scavenger-Gunner 5389 | -6/Extension | Rescued a captive Derelict 5391 | -6/Extension | Rescued a captive Derelict 5461 | -6/Extension | Rescued a captive Derelict 5659 | -6/Extension | Rescued a captive Derelict 5679 | -6/Extension | Rescued A7 5771 | -6/Extension | Rescued a captive Derelict 5772 | -6/Extension | Spotted B-75 Beast 5796 | -6/Extension | Allies destroyed B-75 Beast 5796 | -6/Extension | Spotted B-75 Beast 5820 | -6/Extension | Destroyed B-75 Beast 6111 | -6/Extension | Rescued a captive Derelict 6320 | -6/Extension | Rescued a captive Derelict 6378 | -6/Extension | Discovered new exit (range 10) 6379 | -6/Extension | Discovered new exit (range 6) 6405 | -6/Extension | Identified exit to Cetus 6436 | -6/Extension | Entered Cetus 6436 | -6/Cetus | Accompanied by 14 allies (A7) 6441 | -6/Cetus | Acquired a Cetus Manufacturing Module code from A7 6455 | -6/Cetus | Spotted Cetus Guard 6455 | -6/Cetus | Spotted Cetus Guard 6466 | -6/Cetus | Spotted Cetus Guard 6467 | -6/Cetus | Spotted Cetus Guard 6475 | -6/Cetus | Allies destroyed Cetus Guard 6477 | -6/Cetus | Destroyed Cetus Guard 6480 | -6/Cetus | Allies destroyed Cetus Guard 6485 | -6/Cetus | Allies destroyed Cetus Guard 6508 | -6/Cetus | Lost 4 allies 6519 | -6/Cetus | Started Cetus Manufacturing Module 6544 | -6/Cetus | Manufactured an Enhanced Grunt 6569 | -6/Cetus | Manufactured an Enhanced Grunt 6594 | -6/Cetus | Manufactured an Enhanced Grunt 6619 | -6/Cetus | Manufactured an Enhanced Grunt 6644 | -6/Cetus | Manufactured an Enhanced Grunt 6770 | -6/Cetus | Discovered new exit (range 15) 6836 | -6/Cetus | Build established: Commander-Gunner 6891 | -6/Cetus | Identified exit to Archives 6939 | -6/Cetus | Entered Archives 6939 | -6/Archives | Accompanied by 14 allies (A7) 6988 | -6/Archives | Discovered new exit (range 16) 7004 | -6/Archives | Discovered new exit (range 16) 7005 | -6/Archives | Lost 3 parts (1n2w) 7026 | -6/Archives | Identified exit to Hub_04(d) 7068 | -6/Archives | Entered Hub_04(d) 7068 | -6/Hub_04(d) | Accompanied by 13 allies 7073 | -6/Hub_04(d) | Discovered new exit (range 10) 7083 | -6/Hub_04(d) | Identified exit to Factory 7113 | -6/Hub_04(d) | Spotted B-75 Beast 7128 | -6/Hub_04(d) | Garrison activated, responded to threat 7132 | -6/Hub_04(d) | Allies destroyed B-75 Beast 7167 | -6/Hub_04(d) | Lost 3 allies 7173 | -6/Hub_04(d) | System corruption reached 10% 7228 | -6/Hub_04(d) | Core integrity fell below 50% 7252 | -6/Hub_04(d) | Lost 4 allies 7259 | -6/Hub_04(d) | Lost 3 parts (1n2u) 7293 | -6/Hub_04(d) | Discovered exit to Factory (range 15) 7295 | -6/Hub_04(d) | Lost 3 allies 7412 | -6/Hub_04(d) | Network Hub disabled 7448 | -6/Hub_04(d) | Spotted Lightning 7460 | -6/Hub_04(d) | Spotted Lightning 7460 | -6/Hub_04(d) | Spotted Lightning 7477 | -6/Hub_04(d) | System corruption reached 30% 7497 | -6/Hub_04(d) | Entered Factory 7497 | -5/Factory | Evolved 2 slots: Propulsion x1, Utility x1 7516 | -5/Factory | Lost 3 parts (2u1w) 7641 | -5/Factory | Lost 4 parts (1p1n1u1w) 7803 | -5/Factory | Discovered new exit (range 5) 7808 | -5/Factory | Identified exit to Upper Caves 7814 | -5/Factory | Entered Upper Caves 7825 | -5/Upper Caves | Attracted the attention of an 0b10 checkpoint 7890 | -5/Upper Caves | Destroyed 9 combat bots 7910 | -5/Upper Caves | Met a Warlord Commander 7911 | -5/Upper Caves | Learned location of Warlord (-5) 7912 | -5/Upper Caves | Warlord Commander delivered Encrypted Comm Array 7920 | -5/Upper Caves | Found Encrypted Comm Array 8236 | -5/Upper Caves | System corruption reached 10% 8309 | -5/Upper Caves | Discovered new exit (range 4) 8312 | -5/Upper Caves | Identified exit to Upper Caves 8346 | -5/Upper Caves | Found Alien Artifact 8352 | -5/Upper Caves | Entered another Upper Caves area 8531 | -5/Upper Caves | Build established: Scavenger-Mutant 8641 | -5/Upper Caves | Discovered new exit (range 13) 8657 | -5/Upper Caves | Identified exit to Warlord 8663 | -5/Upper Caves | Entered Warlord 8787 | -5/Warlord | System corruption cleaned by Quarantine Array 8959 | -5/Warlord | Learned 4 Armory zone layouts 8959 | -5/Warlord | Learned 4 Access zone layouts 8959 | -5/Warlord | Learned Research emergency access door positions 8960 | -5/Warlord | Learned Factory scanalyzer intel 9063 | -5/Warlord | Met Warlord 9079 | -5/Warlord | Warlord's base attacked by MAIN.C 9346 | -5/Warlord | Found Prototype Energy Gun 9346 | -5/Warlord | Identified Vortex Rail 9351 | -5/Warlord | Found Vortex Rail 9365 | -5/Warlord | Found Vortex Rail 9429 | -5/Warlord | Warlord forces counterattacked 9491 | -5/Warlord | Spotted Striker 9504 | -5/Warlord | Spotted Executioner 9574 | -5/Warlord | Lost 7 allies 9587 | -5/Warlord | Spotted Executioner 9677 | -5/Warlord | Lost 22 allies 9694 | -5/Warlord | Lost 9 parts (1p3n3u2w) 9754 | -5/Warlord | Warlord base infiltrated, sounded retreat 9782 | -5/Warlord | Lost 4 allies 9812 | -5/Warlord | Core integrity fell below 50% 9815 | -5/Warlord | Spotted Executioner 9845 | -5/Warlord | Lost 5 parts (1p2n2w) 9876 | -5/Warlord | Discovered new exit (range 15) 9900 | -5/Warlord | Spotted Executioner 9929 | -5/Warlord | Lost 5 allies 9941 | -5/Warlord | Identified exit to Proximity Caves 9971 | -5/Warlord | Entered Proximity Caves 10152 | -4/Proximity Caves | Core integrity fell below 20% 10281 | -4/Proximity Caves | Lost 5 parts (1p1n3u) 10525 | -4/Proximity Caves | Entered a huge 0b10 base via the front door 10553 | -4/Proximity Caves | System corruption reached 30% 10591 | -4/Proximity Caves | Spotted B-86 Titan 10620 | -4/Proximity Caves | Identified Dimensional Node Initializer 10620 | -4/Proximity Caves | Initialized slip node 10626 | -4/Proximity Caves | Destroyed by B-86 Titan with Railgun Last Messages --------------- 10620_ Identified Dimensional Node Initializer. 10620_ Initializer activates and latches into the ground. 10620_ Dimensional Slip Node implodes. 10620_ Hvy. Flak Cannon destroyed. 10620_ Gauss Rifle destroyed. 10620_ Imp. Light Armor Plating destroyed. 10620_ Railgun destroyed. 10620_ Med. Storage Unit destroyed. 10620_ G-67 Veteran destroyed. 10623_ System corrupted: Vortex Rail failed to cycle. 10623_ Vortex penetrates B-86 Titan. 10623_ Penetrated by Slug. 10623_ Slug penetrates Earth. 10624_ B-86 Titan activates siege mode. 10625_ System corrupted: Heat flow error (+238). 10626_ Vortex penetrates Wall. 10626_ Vortex penetrates B-86 Titan. 10626_ Entropic reaction triggered in Rnf. Fission Core. 10626_ Vortex penetrates B-86 Titan. 10626_ Vortex Rail destroyed. Map ----- +----------------------------------------------------+ | ???????# ##???# #?# ######????????????????? | | ?????# ##?????# #####?????????????????????? | | ?????# ## #???????# #???????????????????????? | | ?????# ???# #????????## #???????????????????????? | | ??????????##??????????# #???????????????????????? | | ??? ?????????????????# #####???????????????????? | | ??# ?????????????????# ##??????????????????? | | #?# ?????????????????## #??????????????????? | | ## ????????####??????# ##??????????????????? | | # ? ?????## ##????## #???????????????????? | | ?"%##### ##??## #?????????? ????????? | | ? " #### ##????????? ?????????? | | #?? ## #????????? #?????????? | | #????## ##??##?#### ####??????? | | ###### ###?# #? ??????? | | # # ## ## #?????? | | #?# % ## #;#;#;# ?????? | | ##?# ### ; #?????? | | ### ## ##?## ; #?????? | | ## #???# Y b ; #?????? | | ## #?### BB + ????? | | ### ## ### BB ; ????? | | ### #### ##; ;## #?????? | | #?######??####### #?? ??????? | | ##??????????????# #??? ??????? | | ##???????????????# @ #????# ###???????? | | #????????????????#; #?????? #?????????? | | #????????????????### #???????#?????????? | | ???????????????????## ##?????????????????? | | ????????????????????# #??????????????????? | | ????????????????????# #??????????????????? | | ????????????????????## ###### #??????????????????? | | ?????????????????????##??????##??????????????????? | | ?????????????????????????????????????????????????? | | ?????????????????????????????????????????????????? | | ?????????????????????????????????????????????????? | | ?????????????????????????????????????????????????? | | ?????????????????????????????????????????????????? | | ?????????????????????????????????????????????????? | | ?????????????????????????????????????????????????? | | ?????????????????????????????????????????????????? | | ?????????????????????????????????????????????????? | | ?????????????????????????????????????????????????? | | ?????????????????????????????????????????????????? | | ?????????????????????????????????????????????????? | | ?????????????????????????????????????????????????? | | ?????????????????????????????????????????????????? | | ?????????????????????????????????????????????????? | | ?????????????????????????????????????????????????? | | ?????????????????????????????????????????????????? | +----------------------------------------------------+ Best States ------------- Heat Dissipation 121 Energy Generation 21 Energy Capacity 325 Matter Stores 300 Matter Capacity 300 Sight Range 16 Robot Scan Range 15 Terrain Scan Density 10 Base Temperature (-) 150 Armor Coverage 900 Power Shielding 66 Melee Speed Boost 20 Evasion (%) 57 Core Analysis 6 Armor Integrity Analysis 30 Energy Filtering 30 Item Schematics ----------------- None Robot Schematics ------------------ None Fabricated ------------ Nothing Repaired ---------- Aluminum Leg | 3% | -9/Materials Aluminum Leg | 12% | -9/Materials Spread Laser | 27% | -8/Materials Carbon-fiber Leg | 41% | -8/Materials Imp. Aluminum Leg | 51% | -8/Materials Alien Tech Used ----------------- Dimensional Node Initializer Achievements -------------- None Challenges ------------ None Game ------ Seed SalvagingHugeSource Manual? 0 Play Time 01:32:01 Cumulative 106.9 hours Start 2025.06.03 @ 20:07:21 End 2025.06.03 @ 21:47:34 Sessions 1 Manual Loads 0 Difficulty Rogue Special Mode None Game No. 117 Rogue 117 Adventurer 0 Explorer 0 Win Type - Total 5 Types 4/0/0/1/0/0/0/0/0/0 Lore% 52 Gallery% 52 Achievement% 49 Wizard Run 0 Options --------- Layout 1 ASCII 0 Keyboard 0 Movement Mouse Keybinds 0 Fullscreen 1 Font 32/SmallcapsGlow Map View 77x35 Zoom Use 0% Tactical HUD 1 Map Filters NONE Filters NONE Steam 1 RUN: 8cdae1af-f060-4c77-9856-395a3678d73f